{"text_format":"3","workbook":"xlsx","n_sheets":5,"sheets":["Resumen del año actual","1.er trimestre","2.º trimestre","3.er trimestre","4.º trimestre"],"not_rendered":{"defined_names":12},"read":"whole","date_system":"1900"}

{"sheet":"Resumen del año actual","index":0,"n_rows":36,"n_cols":12,"rows_kept":36,"merged":[[3,0,3,6]]}
["Nombre de la empresa"]
["Seguimiento de asistencia, Resumen del año actual"]
["Fecha"]
[{"$f":"Nombre_compañía","v":"Nombre de la empresa"},{"$nulls":6},"CONFIDENCIAL"]
["Apellidos","Nombre","Vacaciones","Personal","Enfermedad","NÚMERO DE LA SEGURIDAD SOCIAL","Puesto","Supervisor","Fecha de contratación","Comentarios","Vacaciones \npor año","Vacaciones \nrestantes"]
["Apellidos","Nombre",{"$f":"SUM('1.er trimestre:4.º trimestre'!C6)","v":3},{"$f":"SUM('1.er trimestre:4.º trimestre'!D6)","v":0},{"$f":"SUM('1.er trimestre:4.º trimestre'!E6)","v":1},"xxx-xx-xxxx","Director","Nombre",null,null,10,{"$f":"K6-C6","v":7}]
[null,null,{"$f":"SUM('1.er trimestre:4.º trimestre'!C7)","v":0},{"$f":"SUM('1.er trimestre:4.º trimestre'!D7)","v":0},{"$f":"SUM('1.er trimestre:4.º trimestre'!E7)","v":0},{"$nulls":6},{"$f":"K7-C7","v":0}]
[null,null,{"$f":"SUM('1.er trimestre:4.º trimestre'!C8)","v":0},{"$f":"SUM('1.er trimestre:4.º trimestre'!D8)","v":0},{"$f":"SUM('1.er trimestre:4.º trimestre'!E8)","v":0},{"$nulls":6},0]
[null,null,{"$f":"SUM('1.er trimestre:4.º trimestre'!C9)","v":0},{"$f":"SUM('1.er trimestre:4.º trimestre'!D9)","v":0},{"$f":"SUM('1.er trimestre:4.º trimestre'!E9)","v":0},{"$nulls":6},0]
[null,null,{"$f":"SUM('1.er trimestre:4.º trimestre'!C10)","v":0},{"$f":"SUM('1.er trimestre:4.º trimestre'!D10)","v":0},{"$f":"SUM('1.er trimestre:4.º trimestre'!E10)","v":0},{"$nulls":6},0]
[null,null,{"$f":"SUM('1.er trimestre:4.º trimestre'!C11)","v":0},{"$f":"SUM('1.er trimestre:4.º trimestre'!D11)","v":0},{"$f":"SUM('1.er trimestre:4.º trimestre'!E11)","v":0},{"$nulls":6},0]
[null,null,{"$f":"SUM('1.er trimestre:4.º trimestre'!C12)","v":0},{"$f":"SUM('1.er trimestre:4.º trimestre'!D12)","v":0},{"$f":"SUM('1.er trimestre:4.º trimestre'!E12)","v":0},{"$nulls":6},0]
[null,null,{"$f":"SUM('1.er trimestre:4.º trimestre'!C13)","v":0},{"$f":"SUM('1.er trimestre:4.º trimestre'!D13)","v":0},{"$f":"SUM('1.er trimestre:4.º trimestre'!E13)","v":0},{"$nulls":6},0]
[null,null,{"$f":"SUM('1.er trimestre:4.º trimestre'!C14)","v":0},{"$f":"SUM('1.er trimestre:4.º trimestre'!D14)","v":0},{"$f":"SUM('1.er trimestre:4.º trimestre'!E14)","v":0},{"$nulls":6},0]
[null,null,{"$f":"SUM('1.er trimestre:4.º trimestre'!C15)","v":0},{"$f":"SUM('1.er trimestre:4.º trimestre'!D15)","v":0},{"$f":"SUM('1.er trimestre:4.º trimestre'!E15)","v":0},{"$nulls":6},0]
[null,null,{"$f":"SUM('1.er trimestre:4.º trimestre'!C16)","v":0},{"$f":"SUM('1.er trimestre:4.º trimestre'!D16)","v":0},{"$f":"SUM('1.er trimestre:4.º trimestre'!E16)","v":0},{"$nulls":6},0]
[null,null,{"$f":"SUM('1.er trimestre:4.º trimestre'!C17)","v":0},{"$f":"SUM('1.er trimestre:4.º trimestre'!D17)","v":0},{"$f":"SUM('1.er trimestre:4.º trimestre'!E17)","v":0},{"$nulls":6},0]
[null,null,{"$f":"SUM('1.er trimestre:4.º trimestre'!C18)","v":0},{"$f":"SUM('1.er trimestre:4.º trimestre'!D18)","v":0},{"$f":"SUM('1.er trimestre:4.º trimestre'!E18)","v":0},{"$nulls":6},0]
[null,null,{"$f":"SUM('1.er trimestre:4.º trimestre'!C19)","v":0},{"$f":"SUM('1.er trimestre:4.º trimestre'!D19)","v":0},{"$f":"SUM('1.er trimestre:4.º trimestre'!E19)","v":0},{"$nulls":6},0]
[null,null,{"$f":"SUM('1.er trimestre:4.º trimestre'!C20)","v":0},{"$f":"SUM('1.er trimestre:4.º trimestre'!D20)","v":0},{"$f":"SUM('1.er trimestre:4.º trimestre'!E20)","v":0},{"$nulls":6},0]
[null,null,{"$f":"SUM('1.er trimestre:4.º trimestre'!C21)","v":0},{"$f":"SUM('1.er trimestre:4.º trimestre'!D21)","v":0},{"$f":"SUM('1.er trimestre:4.º trimestre'!E21)","v":0},{"$nulls":6},0]
[null,null,{"$f":"SUM('1.er trimestre:4.º trimestre'!C22)","v":0},{"$f":"SUM('1.er trimestre:4.º trimestre'!D22)","v":0},{"$f":"SUM('1.er trimestre:4.º trimestre'!E22)","v":0},{"$nulls":6},0]
[null,null,{"$f":"SUM('1.er trimestre:4.º trimestre'!C23)","v":0},{"$f":"SUM('1.er trimestre:4.º trimestre'!D23)","v":0},{"$f":"SUM('1.er trimestre:4.º trimestre'!E23)","v":0},{"$nulls":6},0]
[null,null,{"$f":"SUM('1.er trimestre:4.º trimestre'!C24)","v":0},{"$f":"SUM('1.er trimestre:4.º trimestre'!D24)","v":0},{"$f":"SUM('1.er trimestre:4.º trimestre'!E24)","v":0},{"$nulls":6},0]
[null,null,{"$f":"SUM('1.er trimestre:4.º trimestre'!C25)","v":0},{"$f":"SUM('1.er trimestre:4.º trimestre'!D25)","v":0},{"$f":"SUM('1.er trimestre:4.º trimestre'!E25)","v":0},{"$nulls":6},0]
[null,null,{"$f":"SUM('1.er trimestre:4.º trimestre'!C26)","v":0},{"$f":"SUM('1.er trimestre:4.º trimestre'!D26)","v":0},{"$f":"SUM('1.er trimestre:4.º trimestre'!E26)","v":0},{"$nulls":6},0]
[null,null,{"$f":"SUM('1.er trimestre:4.º trimestre'!C27)","v":0},{"$f":"SUM('1.er trimestre:4.º trimestre'!D27)","v":0},{"$f":"SUM('1.er trimestre:4.º trimestre'!E27)","v":0},{"$nulls":6},0]
[null,null,{"$f":"SUM('1.er trimestre:4.º trimestre'!C28)","v":0},{"$f":"SUM('1.er trimestre:4.º trimestre'!D28)","v":0},{"$f":"SUM('1.er trimestre:4.º trimestre'!E28)","v":0},{"$nulls":6},0]
[null,null,{"$f":"SUM('1.er trimestre:4.º trimestre'!C29)","v":0},{"$f":"SUM('1.er trimestre:4.º trimestre'!D29)","v":0},{"$f":"SUM('1.er trimestre:4.º trimestre'!E29)","v":0},{"$nulls":6},0]
[null,null,{"$f":"SUM('1.er trimestre:4.º trimestre'!C30)","v":0},{"$f":"SUM('1.er trimestre:4.º trimestre'!D30)","v":0},{"$f":"SUM('1.er trimestre:4.º trimestre'!E30)","v":0},{"$nulls":6},0]
[null,null,{"$f":"SUM('1.er trimestre:4.º trimestre'!C31)","v":0},{"$f":"SUM('1.er trimestre:4.º trimestre'!D31)","v":0},{"$f":"SUM('1.er trimestre:4.º trimestre'!E31)","v":0},{"$nulls":6},0]
[null,null,{"$f":"SUM('1.er trimestre:4.º trimestre'!C32)","v":0},{"$f":"SUM('1.er trimestre:4.º trimestre'!D32)","v":0},{"$f":"SUM('1.er trimestre:4.º trimestre'!E32)","v":0},{"$nulls":6},0]
[null,null,{"$f":"SUM('1.er trimestre:4.º trimestre'!C33)","v":0},{"$f":"SUM('1.er trimestre:4.º trimestre'!D33)","v":0},{"$f":"SUM('1.er trimestre:4.º trimestre'!E33)","v":0},{"$nulls":6},0]
[null,null,{"$f":"SUM('1.er trimestre:4.º trimestre'!C34)","v":0},{"$f":"SUM('1.er trimestre:4.º trimestre'!D34)","v":0},{"$f":"SUM('1.er trimestre:4.º trimestre'!E34)","v":0},{"$nulls":6},0]
[null,null,{"$f":"SUM('1.er trimestre:4.º trimestre'!C35)","v":0},{"$f":"SUM('1.er trimestre:4.º trimestre'!D35)","v":0},{"$f":"SUM('1.er trimestre:4.º trimestre'!E35)","v":0},{"$nulls":6},0]
[null,null,{"$f":"SUM('1.er trimestre:4.º trimestre'!C36)","v":0},{"$f":"SUM('1.er trimestre:4.º trimestre'!D36)","v":0},{"$f":"SUM('1.er trimestre:4.º trimestre'!E36)","v":0},{"$nulls":6},0]

{"sheet":"1.er trimestre","index":1,"n_rows":36,"n_cols":95,"rows_kept":36,"merged":[[3,0,3,6]]}
[{"$f":"Nombre_compañía","v":"Nombre de la empresa"}]
["Seguimiento de asistencia, primer trimestre"]
["Fecha"]
[{"$f":"Nombre_compañía","v":"Nombre de la empresa"},{"$nulls":6},"CONFIDENCIAL"]
["Apellidos","Nombre","Vacaciones","Personal","Enfermedad","1-1","2-1","3-1","4-1","5-1","6-1","7-1","8-1","9-1","10-1","11-1","12-1","13-1","14-1","15-1","16-1","17-1","18-1","19-1","20-1","21-1","22-1","23-1","24-1","25-1","26-1","27-1","28-1","29-1","30-1","31-1","1-2","2-2","3-2","4-2","5-2","6-2","7-2","8-2","9-2","10-2","11-2","12-2","13-2","14-2","15-2","16-2","17-2","18-2","19-2","20-2","21-2","22-2","23-2","24-2","25-2","26-2","27-2","28-2","1-3","2-3","3-3","4-3","5-3","6-3","7-3","8-3","9-3","10-3","11-3","12-3","13-3","14-3","15-3","16-3","17-3","18-3","19-3","20-3","21-3","22-3","23-3","24-3","25-3","26-3","27-3","28-3","29-3","30-3","31-3"]
[{"$f":"IF(ISBLANK('Resumen del año actual'!A6),\"\",'Resumen del año actual'!A6)","v":"Apellidos"},{"$f":"IF(ISBLANK('Resumen del año actual'!B6),\"\",'Resumen del año actual'!B6)","v":"Nombre"},{"$f":"COUNTIF($F6:$CQ6, \"V\")","v":3},{"$f":"COUNTIF($F6:$CQ6, \"P\")","v":0},{"$f":"COUNTIF($F6:$CQ6, \"E\")","v":1},"v","v","v",{"$nulls":4},"e"]
[{"$f":"IF(ISBLANK('Resumen del año actual'!A7),\"\",'Resumen del año actual'!A7)","v":""},{"$f":"IF(ISBLANK('Resumen del año actual'!B7),\"\",'Resumen del año actual'!B7)","v":""},0,0,0]
[{"$f":"IF(ISBLANK('Resumen del año actual'!A8),\"\",'Resumen del año actual'!A8)","v":""},{"$f":"IF(ISBLANK('Resumen del año actual'!B8),\"\",'Resumen del año actual'!B8)","v":""},0,0,0]
[{"$f":"IF(ISBLANK('Resumen del año actual'!A9),\"\",'Resumen del año actual'!A9)","v":""},{"$f":"IF(ISBLANK('Resumen del año actual'!B9),\"\",'Resumen del año actual'!B9)","v":""},0,0,0]
[{"$f":"IF(ISBLANK('Resumen del año actual'!A10),\"\",'Resumen del año actual'!A10)","v":""},{"$f":"IF(ISBLANK('Resumen del año actual'!B10),\"\",'Resumen del año actual'!B10)","v":""},0,0,0]
[{"$f":"IF(ISBLANK('Resumen del año actual'!A11),\"\",'Resumen del año actual'!A11)","v":""},{"$f":"IF(ISBLANK('Resumen del año actual'!B11),\"\",'Resumen del año actual'!B11)","v":""},0,0,0]
[{"$f":"IF(ISBLANK('Resumen del año actual'!A12),\"\",'Resumen del año actual'!A12)","v":""},{"$f":"IF(ISBLANK('Resumen del año actual'!B12),\"\",'Resumen del año actual'!B12)","v":""},0,0,0]
[{"$f":"IF(ISBLANK('Resumen del año actual'!A13),\"\",'Resumen del año actual'!A13)","v":""},{"$f":"IF(ISBLANK('Resumen del año actual'!B13),\"\",'Resumen del año actual'!B13)","v":""},0,0,0]
[{"$f":"IF(ISBLANK('Resumen del año actual'!A14),\"\",'Resumen del año actual'!A14)","v":""},{"$f":"IF(ISBLANK('Resumen del año actual'!B14),\"\",'Resumen del año actual'!B14)","v":""},0,0,0]
[{"$f":"IF(ISBLANK('Resumen del año actual'!A15),\"\",'Resumen del año actual'!A15)","v":""},{"$f":"IF(ISBLANK('Resumen del año actual'!B15),\"\",'Resumen del año actual'!B15)","v":""},0,0,0]
[{"$f":"IF(ISBLANK('Resumen del año actual'!A16),\"\",'Resumen del año actual'!A16)","v":""},{"$f":"IF(ISBLANK('Resumen del año actual'!B16),\"\",'Resumen del año actual'!B16)","v":""},0,0,0]
[{"$f":"IF(ISBLANK('Resumen del año actual'!A17),\"\",'Resumen del año actual'!A17)","v":""},{"$f":"IF(ISBLANK('Resumen del año actual'!B17),\"\",'Resumen del año actual'!B17)","v":""},0,0,0]
[{"$f":"IF(ISBLANK('Resumen del año actual'!A18),\"\",'Resumen del año actual'!A18)","v":""},{"$f":"IF(ISBLANK('Resumen del año actual'!B18),\"\",'Resumen del año actual'!B18)","v":""},0,0,0]
[{"$f":"IF(ISBLANK('Resumen del año actual'!A19),\"\",'Resumen del año actual'!A19)","v":""},{"$f":"IF(ISBLANK('Resumen del año actual'!B19),\"\",'Resumen del año actual'!B19)","v":""},0,0,0]
[{"$f":"IF(ISBLANK('Resumen del año actual'!A20),\"\",'Resumen del año actual'!A20)","v":""},{"$f":"IF(ISBLANK('Resumen del año actual'!B20),\"\",'Resumen del año actual'!B20)","v":""},0,0,0]
[{"$f":"IF(ISBLANK('Resumen del año actual'!A21),\"\",'Resumen del año actual'!A21)","v":""},{"$f":"IF(ISBLANK('Resumen del año actual'!B21),\"\",'Resumen del año actual'!B21)","v":""},0,0,0]
[{"$f":"IF(ISBLANK('Resumen del año actual'!A22),\"\",'Resumen del año actual'!A22)","v":""},{"$f":"IF(ISBLANK('Resumen del año actual'!B22),\"\",'Resumen del año actual'!B22)","v":""},0,0,0]
[{"$f":"IF(ISBLANK('Resumen del año actual'!A23),\"\",'Resumen del año actual'!A23)","v":""},{"$f":"IF(ISBLANK('Resumen del año actual'!B23),\"\",'Resumen del año actual'!B23)","v":""},0,0,0]
[{"$f":"IF(ISBLANK('Resumen del año actual'!A24),\"\",'Resumen del año actual'!A24)","v":""},{"$f":"IF(ISBLANK('Resumen del año actual'!B24),\"\",'Resumen del año actual'!B24)","v":""},0,0,0]
[{"$f":"IF(ISBLANK('Resumen del año actual'!A25),\"\",'Resumen del año actual'!A25)","v":""},{"$f":"IF(ISBLANK('Resumen del año actual'!B25),\"\",'Resumen del año actual'!B25)","v":""},0,0,0]
[{"$f":"IF(ISBLANK('Resumen del año actual'!A26),\"\",'Resumen del año actual'!A26)","v":""},{"$f":"IF(ISBLANK('Resumen del año actual'!B26),\"\",'Resumen del año actual'!B26)","v":""},0,0,0]
[{"$f":"IF(ISBLANK('Resumen del año actual'!A27),\"\",'Resumen del año actual'!A27)","v":""},{"$f":"IF(ISBLANK('Resumen del año actual'!B27),\"\",'Resumen del año actual'!B27)","v":""},0,0,0]
[{"$f":"IF(ISBLANK('Resumen del año actual'!A28),\"\",'Resumen del año actual'!A28)","v":""},{"$f":"IF(ISBLANK('Resumen del año actual'!B28),\"\",'Resumen del año actual'!B28)","v":""},0,0,0]
[{"$f":"IF(ISBLANK('Resumen del año actual'!A29),\"\",'Resumen del año actual'!A29)","v":""},{"$f":"IF(ISBLANK('Resumen del año actual'!B29),\"\",'Resumen del año actual'!B29)","v":""},0,0,0]
[{"$f":"IF(ISBLANK('Resumen del año actual'!A30),\"\",'Resumen del año actual'!A30)","v":""},{"$f":"IF(ISBLANK('Resumen del año actual'!B30),\"\",'Resumen del año actual'!B30)","v":""},0,0,0]
[{"$f":"IF(ISBLANK('Resumen del año actual'!A31),\"\",'Resumen del año actual'!A31)","v":""},{"$f":"IF(ISBLANK('Resumen del año actual'!B31),\"\",'Resumen del año actual'!B31)","v":""},0,0,0]
[{"$f":"IF(ISBLANK('Resumen del año actual'!A32),\"\",'Resumen del año actual'!A32)","v":""},{"$f":"IF(ISBLANK('Resumen del año actual'!B32),\"\",'Resumen del año actual'!B32)","v":""},0,0,0]
[{"$f":"IF(ISBLANK('Resumen del año actual'!A33),\"\",'Resumen del año actual'!A33)","v":""},{"$f":"IF(ISBLANK('Resumen del año actual'!B33),\"\",'Resumen del año actual'!B33)","v":""},0,0,0]
[{"$f":"IF(ISBLANK('Resumen del año actual'!A34),\"\",'Resumen del año actual'!A34)","v":""},{"$f":"IF(ISBLANK('Resumen del año actual'!B34),\"\",'Resumen del año actual'!B34)","v":""},0,0,0]
[{"$f":"IF(ISBLANK('Resumen del año actual'!A35),\"\",'Resumen del año actual'!A35)","v":""},{"$f":"IF(ISBLANK('Resumen del año actual'!B35),\"\",'Resumen del año actual'!B35)","v":""},0,0,0]
[{"$f":"IF(ISBLANK('Resumen del año actual'!A36),\"\",'Resumen del año actual'!A36)","v":""},{"$f":"IF(ISBLANK('Resumen del año actual'!B36),\"\",'Resumen del año actual'!B36)","v":""},0,0,0]

{"sheet":"2.º trimestre","index":2,"n_rows":36,"n_cols":96,"rows_kept":36,"merged":[[3,0,3,6]]}
[{"$f":"Nombre_compañía","v":"Nombre de la empresa"}]
["Seguimiento de asistencia, segundo trimestre"]
["Fecha"]
[{"$f":"Nombre_compañía","v":"Nombre de la empresa"},{"$nulls":6},"CONFIDENCIAL"]
["Apellidos","Nombre","Vacaciones","Personal","Enfermedad","1-4","2-4","3-4","4-4","5-4","6-4","7-4","8-4","9-4","10-4","11-4","12-4","13-4","14-4","15-4","16-4","17-4","18-4","19-4","20-4","21-4","22-4","23-4","24-4","25-4","26-4","27-4","28-4","29-4","30-4","1-5","2-5","3-5","4-5","5-5","6-5","7-5","8-5","9-5","10-5","11-5","12-5","13-5","14-5","15-5","16-5","17-5","18-5","19-5","20-5","21-5","22-5","23-5","24-5","25-5","26-5","27-5","28-5","29-5","30-5","31-5","1-6","2-6","3-6","4-6","5-6","6/6","7-6","8-6","9-6","10-6","11-6","12-6","13-6","14-6","15-6","16-6","17-6","18-6","19-6","20-6","21-6","22-6","23-6","24-6","25-6","26-6","27-6","28-6","29-6","30-6"]
[{"$f":"IF(ISBLANK('Resumen del año actual'!A6),\"\",'Resumen del año actual'!A6)","v":"Apellidos"},{"$f":"IF(ISBLANK('Resumen del año actual'!B6),\"\",'Resumen del año actual'!B6)","v":"Nombre"},{"$f":"COUNTIF($F6:$CR6, \"V\")","v":0},{"$f":"COUNTIF($F6:$CR6, \"P\")","v":0},{"$f":"COUNTIF($F6:$CR6, \"E\")","v":0}]
[{"$f":"IF(ISBLANK('Resumen del año actual'!A7),\"\",'Resumen del año actual'!A7)","v":""},{"$f":"IF(ISBLANK('Resumen del año actual'!B7),\"\",'Resumen del año actual'!B7)","v":""},{"$f":"COUNTIF($F7:$CR7, \"V\")","v":0},{"$f":"COUNTIF($F7:$CR7, \"P\")","v":0},0]
[{"$f":"IF(ISBLANK('Resumen del año actual'!A8),\"\",'Resumen del año actual'!A8)","v":""},{"$f":"IF(ISBLANK('Resumen del año actual'!B8),\"\",'Resumen del año actual'!B8)","v":""},0,0,0]
[{"$f":"IF(ISBLANK('Resumen del año actual'!A9),\"\",'Resumen del año actual'!A9)","v":""},{"$f":"IF(ISBLANK('Resumen del año actual'!B9),\"\",'Resumen del año actual'!B9)","v":""},0,0,0]
[{"$f":"IF(ISBLANK('Resumen del año actual'!A10),\"\",'Resumen del año actual'!A10)","v":""},{"$f":"IF(ISBLANK('Resumen del año actual'!B10),\"\",'Resumen del año actual'!B10)","v":""},0,0,0]
[{"$f":"IF(ISBLANK('Resumen del año actual'!A11),\"\",'Resumen del año actual'!A11)","v":""},{"$f":"IF(ISBLANK('Resumen del año actual'!B11),\"\",'Resumen del año actual'!B11)","v":""},0,0,0]
[{"$f":"IF(ISBLANK('Resumen del año actual'!A12),\"\",'Resumen del año actual'!A12)","v":""},{"$f":"IF(ISBLANK('Resumen del año actual'!B12),\"\",'Resumen del año actual'!B12)","v":""},0,0,0]
[{"$f":"IF(ISBLANK('Resumen del año actual'!A13),\"\",'Resumen del año actual'!A13)","v":""},{"$f":"IF(ISBLANK('Resumen del año actual'!B13),\"\",'Resumen del año actual'!B13)","v":""},0,0,0]
[{"$f":"IF(ISBLANK('Resumen del año actual'!A14),\"\",'Resumen del año actual'!A14)","v":""},{"$f":"IF(ISBLANK('Resumen del año actual'!B14),\"\",'Resumen del año actual'!B14)","v":""},0,0,0]
[{"$f":"IF(ISBLANK('Resumen del año actual'!A15),\"\",'Resumen del año actual'!A15)","v":""},{"$f":"IF(ISBLANK('Resumen del año actual'!B15),\"\",'Resumen del año actual'!B15)","v":""},0,0,0]
[{"$f":"IF(ISBLANK('Resumen del año actual'!A16),\"\",'Resumen del año actual'!A16)","v":""},{"$f":"IF(ISBLANK('Resumen del año actual'!B16),\"\",'Resumen del año actual'!B16)","v":""},0,0,0]
[{"$f":"IF(ISBLANK('Resumen del año actual'!A17),\"\",'Resumen del año actual'!A17)","v":""},{"$f":"IF(ISBLANK('Resumen del año actual'!B17),\"\",'Resumen del año actual'!B17)","v":""},0,0,0]
[{"$f":"IF(ISBLANK('Resumen del año actual'!A18),\"\",'Resumen del año actual'!A18)","v":""},{"$f":"IF(ISBLANK('Resumen del año actual'!B18),\"\",'Resumen del año actual'!B18)","v":""},0,0,0]
[{"$f":"IF(ISBLANK('Resumen del año actual'!A19),\"\",'Resumen del año actual'!A19)","v":""},{"$f":"IF(ISBLANK('Resumen del año actual'!B19),\"\",'Resumen del año actual'!B19)","v":""},0,0,0]
[{"$f":"IF(ISBLANK('Resumen del año actual'!A20),\"\",'Resumen del año actual'!A20)","v":""},{"$f":"IF(ISBLANK('Resumen del año actual'!B20),\"\",'Resumen del año actual'!B20)","v":""},0,0,0]
[{"$f":"IF(ISBLANK('Resumen del año actual'!A21),\"\",'Resumen del año actual'!A21)","v":""},{"$f":"IF(ISBLANK('Resumen del año actual'!B21),\"\",'Resumen del año actual'!B21)","v":""},0,0,0]
[{"$f":"IF(ISBLANK('Resumen del año actual'!A22),\"\",'Resumen del año actual'!A22)","v":""},{"$f":"IF(ISBLANK('Resumen del año actual'!B22),\"\",'Resumen del año actual'!B22)","v":""},0,0,0]
[{"$f":"IF(ISBLANK('Resumen del año actual'!A23),\"\",'Resumen del año actual'!A23)","v":""},{"$f":"IF(ISBLANK('Resumen del año actual'!B23),\"\",'Resumen del año actual'!B23)","v":""},0,0,0]
[{"$f":"IF(ISBLANK('Resumen del año actual'!A24),\"\",'Resumen del año actual'!A24)","v":""},{"$f":"IF(ISBLANK('Resumen del año actual'!B24),\"\",'Resumen del año actual'!B24)","v":""},0,0,0]
[{"$f":"IF(ISBLANK('Resumen del año actual'!A25),\"\",'Resumen del año actual'!A25)","v":""},{"$f":"IF(ISBLANK('Resumen del año actual'!B25),\"\",'Resumen del año actual'!B25)","v":""},0,0,0]
[{"$f":"IF(ISBLANK('Resumen del año actual'!A26),\"\",'Resumen del año actual'!A26)","v":""},{"$f":"IF(ISBLANK('Resumen del año actual'!B26),\"\",'Resumen del año actual'!B26)","v":""},0,0,0]
[{"$f":"IF(ISBLANK('Resumen del año actual'!A27),\"\",'Resumen del año actual'!A27)","v":""},{"$f":"IF(ISBLANK('Resumen del año actual'!B27),\"\",'Resumen del año actual'!B27)","v":""},0,0,0]
[{"$f":"IF(ISBLANK('Resumen del año actual'!A28),\"\",'Resumen del año actual'!A28)","v":""},{"$f":"IF(ISBLANK('Resumen del año actual'!B28),\"\",'Resumen del año actual'!B28)","v":""},0,0,0]
[{"$f":"IF(ISBLANK('Resumen del año actual'!A29),\"\",'Resumen del año actual'!A29)","v":""},{"$f":"IF(ISBLANK('Resumen del año actual'!B29),\"\",'Resumen del año actual'!B29)","v":""},0,0,0]
[{"$f":"IF(ISBLANK('Resumen del año actual'!A30),\"\",'Resumen del año actual'!A30)","v":""},{"$f":"IF(ISBLANK('Resumen del año actual'!B30),\"\",'Resumen del año actual'!B30)","v":""},0,0,0]
[{"$f":"IF(ISBLANK('Resumen del año actual'!A31),\"\",'Resumen del año actual'!A31)","v":""},{"$f":"IF(ISBLANK('Resumen del año actual'!B31),\"\",'Resumen del año actual'!B31)","v":""},0,0,0]
[{"$f":"IF(ISBLANK('Resumen del año actual'!A32),\"\",'Resumen del año actual'!A32)","v":""},{"$f":"IF(ISBLANK('Resumen del año actual'!B32),\"\",'Resumen del año actual'!B32)","v":""},0,0,0]
[{"$f":"IF(ISBLANK('Resumen del año actual'!A33),\"\",'Resumen del año actual'!A33)","v":""},{"$f":"IF(ISBLANK('Resumen del año actual'!B33),\"\",'Resumen del año actual'!B33)","v":""},0,0,0]
[{"$f":"IF(ISBLANK('Resumen del año actual'!A34),\"\",'Resumen del año actual'!A34)","v":""},{"$f":"IF(ISBLANK('Resumen del año actual'!B34),\"\",'Resumen del año actual'!B34)","v":""},0,0,0]
[{"$f":"IF(ISBLANK('Resumen del año actual'!A35),\"\",'Resumen del año actual'!A35)","v":""},{"$f":"IF(ISBLANK('Resumen del año actual'!B35),\"\",'Resumen del año actual'!B35)","v":""},0,0,0]
[{"$f":"IF(ISBLANK('Resumen del año actual'!A36),\"\",'Resumen del año actual'!A36)","v":""},{"$f":"IF(ISBLANK('Resumen del año actual'!B36),\"\",'Resumen del año actual'!B36)","v":""},0,0,0]

{"sheet":"3.er trimestre","index":3,"n_rows":36,"n_cols":97,"rows_kept":36,"merged":[[3,0,3,6]]}
[{"$f":"Nombre_compañía","v":"Nombre de la empresa"}]
["Seguimiento de asistencia, tercer trimestre"]
["Fecha"]
[{"$f":"Nombre_compañía","v":"Nombre de la empresa"},{"$nulls":6},"CONFIDENCIAL"]
["Apellidos","Nombre","Vacaciones","Personal","Enfermedad","7-1","7-2","7-3","7-4","7-5","7-6","7-7","1-7","1-72","10-7","11-7","12-7","13-7","14-7","15-7","16-7","17-7","18-7","19-7","20-7","21-7","22-7","23-7","24-7","25-7","26-7","27-7","28-7","29-7","30-7","31-7","1-8","2-8","3-8","4-8","5-8","6-8","7-8","8-8","9-8","10-8","11-8","12-8","13-8","14-8","15-8","16-8","17-8","18-8","19-8","20-8","21-8","22-8","23-8","24-8","25-8","26-8","27-8","28-8","29-8","30-8","31-8","1-9","2-9","3-9","4-9","5-9","6-9","7-9","8-9","9-9","10-9","11-9","12-9","13-9","14-9","15-9","16-9","17-9","18-9","19-9","20-9","21-9","22-9","23-9","24-9","25-9","26-9","27-9","28-9","29-9","30-9"]
[{"$f":"IF(ISBLANK('Resumen del año actual'!A6),\"\",'Resumen del año actual'!A6)","v":"Apellidos"},{"$f":"IF(ISBLANK('Resumen del año actual'!B6),\"\",'Resumen del año actual'!B6)","v":"Nombre"},{"$f":"COUNTIF($F6:$CS6, \"V\")","v":0},{"$f":"COUNTIF($F6:$CS6, \"P\")","v":0},{"$f":"COUNTIF($F6:$CS6, \"E\")","v":0}]
[{"$f":"IF(ISBLANK('Resumen del año actual'!A7),\"\",'Resumen del año actual'!A7)","v":""},{"$f":"IF(ISBLANK('Resumen del año actual'!B7),\"\",'Resumen del año actual'!B7)","v":""},{"$f":"COUNTIF($F7:$CS7, \"V\")","v":0},{"$f":"COUNTIF($F7:$CS7, \"P\")","v":0},0]
[{"$f":"IF(ISBLANK('Resumen del año actual'!A8),\"\",'Resumen del año actual'!A8)","v":""},{"$f":"IF(ISBLANK('Resumen del año actual'!B8),\"\",'Resumen del año actual'!B8)","v":""},0,0,0]
[{"$f":"IF(ISBLANK('Resumen del año actual'!A9),\"\",'Resumen del año actual'!A9)","v":""},{"$f":"IF(ISBLANK('Resumen del año actual'!B9),\"\",'Resumen del año actual'!B9)","v":""},0,0,0]
[{"$f":"IF(ISBLANK('Resumen del año actual'!A10),\"\",'Resumen del año actual'!A10)","v":""},{"$f":"IF(ISBLANK('Resumen del año actual'!B10),\"\",'Resumen del año actual'!B10)","v":""},0,0,0]
[{"$f":"IF(ISBLANK('Resumen del año actual'!A11),\"\",'Resumen del año actual'!A11)","v":""},{"$f":"IF(ISBLANK('Resumen del año actual'!B11),\"\",'Resumen del año actual'!B11)","v":""},0,0,0]
[{"$f":"IF(ISBLANK('Resumen del año actual'!A12),\"\",'Resumen del año actual'!A12)","v":""},{"$f":"IF(ISBLANK('Resumen del año actual'!B12),\"\",'Resumen del año actual'!B12)","v":""},0,0,0]
[{"$f":"IF(ISBLANK('Resumen del año actual'!A13),\"\",'Resumen del año actual'!A13)","v":""},{"$f":"IF(ISBLANK('Resumen del año actual'!B13),\"\",'Resumen del año actual'!B13)","v":""},0,0,0]
[{"$f":"IF(ISBLANK('Resumen del año actual'!A14),\"\",'Resumen del año actual'!A14)","v":""},{"$f":"IF(ISBLANK('Resumen del año actual'!B14),\"\",'Resumen del año actual'!B14)","v":""},0,0,0]
[{"$f":"IF(ISBLANK('Resumen del año actual'!A15),\"\",'Resumen del año actual'!A15)","v":""},{"$f":"IF(ISBLANK('Resumen del año actual'!B15),\"\",'Resumen del año actual'!B15)","v":""},0,0,0]
[{"$f":"IF(ISBLANK('Resumen del año actual'!A16),\"\",'Resumen del año actual'!A16)","v":""},{"$f":"IF(ISBLANK('Resumen del año actual'!B16),\"\",'Resumen del año actual'!B16)","v":""},0,0,0]
[{"$f":"IF(ISBLANK('Resumen del año actual'!A17),\"\",'Resumen del año actual'!A17)","v":""},{"$f":"IF(ISBLANK('Resumen del año actual'!B17),\"\",'Resumen del año actual'!B17)","v":""},0,0,0]
[{"$f":"IF(ISBLANK('Resumen del año actual'!A18),\"\",'Resumen del año actual'!A18)","v":""},{"$f":"IF(ISBLANK('Resumen del año actual'!B18),\"\",'Resumen del año actual'!B18)","v":""},0,0,0]
[{"$f":"IF(ISBLANK('Resumen del año actual'!A19),\"\",'Resumen del año actual'!A19)","v":""},{"$f":"IF(ISBLANK('Resumen del año actual'!B19),\"\",'Resumen del año actual'!B19)","v":""},0,0,0]
[{"$f":"IF(ISBLANK('Resumen del año actual'!A20),\"\",'Resumen del año actual'!A20)","v":""},{"$f":"IF(ISBLANK('Resumen del año actual'!B20),\"\",'Resumen del año actual'!B20)","v":""},0,0,0]
[{"$f":"IF(ISBLANK('Resumen del año actual'!A21),\"\",'Resumen del año actual'!A21)","v":""},{"$f":"IF(ISBLANK('Resumen del año actual'!B21),\"\",'Resumen del año actual'!B21)","v":""},0,0,0]
[{"$f":"IF(ISBLANK('Resumen del año actual'!A22),\"\",'Resumen del año actual'!A22)","v":""},{"$f":"IF(ISBLANK('Resumen del año actual'!B22),\"\",'Resumen del año actual'!B22)","v":""},0,0,0]
[{"$f":"IF(ISBLANK('Resumen del año actual'!A23),\"\",'Resumen del año actual'!A23)","v":""},{"$f":"IF(ISBLANK('Resumen del año actual'!B23),\"\",'Resumen del año actual'!B23)","v":""},0,0,0]
[{"$f":"IF(ISBLANK('Resumen del año actual'!A24),\"\",'Resumen del año actual'!A24)","v":""},{"$f":"IF(ISBLANK('Resumen del año actual'!B24),\"\",'Resumen del año actual'!B24)","v":""},0,0,0]
[{"$f":"IF(ISBLANK('Resumen del año actual'!A25),\"\",'Resumen del año actual'!A25)","v":""},{"$f":"IF(ISBLANK('Resumen del año actual'!B25),\"\",'Resumen del año actual'!B25)","v":""},0,0,0]
[{"$f":"IF(ISBLANK('Resumen del año actual'!A26),\"\",'Resumen del año actual'!A26)","v":""},{"$f":"IF(ISBLANK('Resumen del año actual'!B26),\"\",'Resumen del año actual'!B26)","v":""},0,0,0]
[{"$f":"IF(ISBLANK('Resumen del año actual'!A27),\"\",'Resumen del año actual'!A27)","v":""},{"$f":"IF(ISBLANK('Resumen del año actual'!B27),\"\",'Resumen del año actual'!B27)","v":""},0,0,0]
[{"$f":"IF(ISBLANK('Resumen del año actual'!A28),\"\",'Resumen del año actual'!A28)","v":""},{"$f":"IF(ISBLANK('Resumen del año actual'!B28),\"\",'Resumen del año actual'!B28)","v":""},0,0,0]
[{"$f":"IF(ISBLANK('Resumen del año actual'!A29),\"\",'Resumen del año actual'!A29)","v":""},{"$f":"IF(ISBLANK('Resumen del año actual'!B29),\"\",'Resumen del año actual'!B29)","v":""},0,0,0]
[{"$f":"IF(ISBLANK('Resumen del año actual'!A30),\"\",'Resumen del año actual'!A30)","v":""},{"$f":"IF(ISBLANK('Resumen del año actual'!B30),\"\",'Resumen del año actual'!B30)","v":""},0,0,0]
[{"$f":"IF(ISBLANK('Resumen del año actual'!A31),\"\",'Resumen del año actual'!A31)","v":""},{"$f":"IF(ISBLANK('Resumen del año actual'!B31),\"\",'Resumen del año actual'!B31)","v":""},0,0,0]
[{"$f":"IF(ISBLANK('Resumen del año actual'!A32),\"\",'Resumen del año actual'!A32)","v":""},{"$f":"IF(ISBLANK('Resumen del año actual'!B32),\"\",'Resumen del año actual'!B32)","v":""},0,0,0]
[{"$f":"IF(ISBLANK('Resumen del año actual'!A33),\"\",'Resumen del año actual'!A33)","v":""},{"$f":"IF(ISBLANK('Resumen del año actual'!B33),\"\",'Resumen del año actual'!B33)","v":""},0,0,0]
[{"$f":"IF(ISBLANK('Resumen del año actual'!A34),\"\",'Resumen del año actual'!A34)","v":""},{"$f":"IF(ISBLANK('Resumen del año actual'!B34),\"\",'Resumen del año actual'!B34)","v":""},0,0,0]
[{"$f":"IF(ISBLANK('Resumen del año actual'!A35),\"\",'Resumen del año actual'!A35)","v":""},{"$f":"IF(ISBLANK('Resumen del año actual'!B35),\"\",'Resumen del año actual'!B35)","v":""},0,0,0]
[{"$f":"IF(ISBLANK('Resumen del año actual'!A36),\"\",'Resumen del año actual'!A36)","v":""},{"$f":"IF(ISBLANK('Resumen del año actual'!B36),\"\",'Resumen del año actual'!B36)","v":""},0,0,0]

{"sheet":"4.º trimestre","index":4,"n_rows":36,"n_cols":97,"rows_kept":36,"merged":[[3,0,3,6]]}
[{"$f":"Nombre_compañía","v":"Nombre de la empresa"}]
["Seguimiento de asistencia, cuarto trimestre"]
["Fecha"]
[{"$f":"Nombre_compañía","v":"Nombre de la empresa"},{"$nulls":6},"CONFIDENCIAL"]
["Apellidos","Nombre","Vacaciones","Personal","Enfermedad","10-1","10-2","10-3","4-10","5-10","6-10","7-10","8-10","9-10","10-10","11-10","12-10","13-10","14-10","15-10","16-10","17-10","18-10","19-10","20-10","21-10","22-10","23-10","24-10","25-10","26-10","27-10","28-10","29-10","30-10","31-10","1-11","2-11","3-11","4-11","5-11","6-11","7-11","8-11","9-11","10-11","11-11","12-11","13-11","14-11","15-11","16-11","17-11","18-11","19-11","20-11","21-11","22-11","23-11","24-11","25-11","26-11","27-11","28-11","29-11","30-11","1-12","2-12","3-12","4-12","5-12","6-12","7-12","8-12","9-12","10-12","11-12","12-12","13-12","14-12","15-12","16-12","17-12","18-12","19-12","20-12","21-12","22-12","23-12","24-12","25-12","26-12","27-12","28-12","29-12","30-12","31-12"]
[{"$f":"IF(ISBLANK('Resumen del año actual'!A6),\"\",'Resumen del año actual'!A6)","v":"Apellidos"},{"$f":"IF(ISBLANK('Resumen del año actual'!B6),\"\",'Resumen del año actual'!B6)","v":"Nombre"},{"$f":"COUNTIF($F6:$CS6, \"V\")","v":0},{"$f":"COUNTIF($F6:CS6, \"P\")","v":0},{"$f":"COUNTIF($F6:CS6, \"E\")","v":0}]
[{"$f":"IF(ISBLANK('Resumen del año actual'!A7),\"\",'Resumen del año actual'!A7)","v":""},{"$f":"IF(ISBLANK('Resumen del año actual'!B7),\"\",'Resumen del año actual'!B7)","v":""},0,{"$f":"COUNTIF($F7:CS7, \"P\")","v":0},{"$f":"COUNTIF($F7:CS7, \"E\")","v":0}]
[{"$f":"IF(ISBLANK('Resumen del año actual'!A8),\"\",'Resumen del año actual'!A8)","v":""},{"$f":"IF(ISBLANK('Resumen del año actual'!B8),\"\",'Resumen del año actual'!B8)","v":""},0,{"$f":"COUNTIF($F8:CS8, \"P\")","v":0},{"$f":"COUNTIF($F8:CS8, \"E\")","v":0}]
[{"$f":"IF(ISBLANK('Resumen del año actual'!A9),\"\",'Resumen del año actual'!A9)","v":""},{"$f":"IF(ISBLANK('Resumen del año actual'!B9),\"\",'Resumen del año actual'!B9)","v":""},0,{"$f":"COUNTIF($F9:CS9, \"P\")","v":0},{"$f":"COUNTIF($F9:CS9, \"E\")","v":0}]
[{"$f":"IF(ISBLANK('Resumen del año actual'!A10),\"\",'Resumen del año actual'!A10)","v":""},{"$f":"IF(ISBLANK('Resumen del año actual'!B10),\"\",'Resumen del año actual'!B10)","v":""},0,{"$f":"COUNTIF($F10:CS10, \"P\")","v":0},{"$f":"COUNTIF($F10:CS10, \"E\")","v":0}]
[{"$f":"IF(ISBLANK('Resumen del año actual'!A11),\"\",'Resumen del año actual'!A11)","v":""},{"$f":"IF(ISBLANK('Resumen del año actual'!B11),\"\",'Resumen del año actual'!B11)","v":""},0,{"$f":"COUNTIF($F11:CS11, \"P\")","v":0},{"$f":"COUNTIF($F11:CS11, \"E\")","v":0}]
[{"$f":"IF(ISBLANK('Resumen del año actual'!A12),\"\",'Resumen del año actual'!A12)","v":""},{"$f":"IF(ISBLANK('Resumen del año actual'!B12),\"\",'Resumen del año actual'!B12)","v":""},0,{"$f":"COUNTIF($F12:CS12, \"P\")","v":0},{"$f":"COUNTIF($F12:CS12, \"E\")","v":0}]
[{"$f":"IF(ISBLANK('Resumen del año actual'!A13),\"\",'Resumen del año actual'!A13)","v":""},{"$f":"IF(ISBLANK('Resumen del año actual'!B13),\"\",'Resumen del año actual'!B13)","v":""},0,{"$f":"COUNTIF($F13:CS13, \"P\")","v":0},{"$f":"COUNTIF($F13:CS13, \"E\")","v":0}]
[{"$f":"IF(ISBLANK('Resumen del año actual'!A14),\"\",'Resumen del año actual'!A14)","v":""},{"$f":"IF(ISBLANK('Resumen del año actual'!B14),\"\",'Resumen del año actual'!B14)","v":""},0,{"$f":"COUNTIF($F14:CS14, \"P\")","v":0},{"$f":"COUNTIF($F14:CS14, \"E\")","v":0}]
[{"$f":"IF(ISBLANK('Resumen del año actual'!A15),\"\",'Resumen del año actual'!A15)","v":""},{"$f":"IF(ISBLANK('Resumen del año actual'!B15),\"\",'Resumen del año actual'!B15)","v":""},0,{"$f":"COUNTIF($F15:CS15, \"P\")","v":0},{"$f":"COUNTIF($F15:CS15, \"E\")","v":0}]
[{"$f":"IF(ISBLANK('Resumen del año actual'!A16),\"\",'Resumen del año actual'!A16)","v":""},{"$f":"IF(ISBLANK('Resumen del año actual'!B16),\"\",'Resumen del año actual'!B16)","v":""},0,{"$f":"COUNTIF($F16:CS16, \"P\")","v":0},{"$f":"COUNTIF($F16:CS16, \"E\")","v":0}]
[{"$f":"IF(ISBLANK('Resumen del año actual'!A17),\"\",'Resumen del año actual'!A17)","v":""},{"$f":"IF(ISBLANK('Resumen del año actual'!B17),\"\",'Resumen del año actual'!B17)","v":""},0,{"$f":"COUNTIF($F17:CS17, \"P\")","v":0},{"$f":"COUNTIF($F17:CS17, \"E\")","v":0}]
[{"$f":"IF(ISBLANK('Resumen del año actual'!A18),\"\",'Resumen del año actual'!A18)","v":""},{"$f":"IF(ISBLANK('Resumen del año actual'!B18),\"\",'Resumen del año actual'!B18)","v":""},0,{"$f":"COUNTIF($F18:CS18, \"P\")","v":0},{"$f":"COUNTIF($F18:CS18, \"E\")","v":0}]
[{"$f":"IF(ISBLANK('Resumen del año actual'!A19),\"\",'Resumen del año actual'!A19)","v":""},{"$f":"IF(ISBLANK('Resumen del año actual'!B19),\"\",'Resumen del año actual'!B19)","v":""},0,{"$f":"COUNTIF($F19:CS19, \"P\")","v":0},{"$f":"COUNTIF($F19:CS19, \"E\")","v":0}]
[{"$f":"IF(ISBLANK('Resumen del año actual'!A20),\"\",'Resumen del año actual'!A20)","v":""},{"$f":"IF(ISBLANK('Resumen del año actual'!B20),\"\",'Resumen del año actual'!B20)","v":""},0,{"$f":"COUNTIF($F20:CS20, \"P\")","v":0},{"$f":"COUNTIF($F20:CS20, \"E\")","v":0}]
[{"$f":"IF(ISBLANK('Resumen del año actual'!A21),\"\",'Resumen del año actual'!A21)","v":""},{"$f":"IF(ISBLANK('Resumen del año actual'!B21),\"\",'Resumen del año actual'!B21)","v":""},0,{"$f":"COUNTIF($F21:CS21, \"P\")","v":0},{"$f":"COUNTIF($F21:CS21, \"E\")","v":0}]
[{"$f":"IF(ISBLANK('Resumen del año actual'!A22),\"\",'Resumen del año actual'!A22)","v":""},{"$f":"IF(ISBLANK('Resumen del año actual'!B22),\"\",'Resumen del año actual'!B22)","v":""},0,{"$f":"COUNTIF($F22:CS22, \"P\")","v":0},{"$f":"COUNTIF($F22:CS22, \"E\")","v":0}]
[{"$f":"IF(ISBLANK('Resumen del año actual'!A23),\"\",'Resumen del año actual'!A23)","v":""},{"$f":"IF(ISBLANK('Resumen del año actual'!B23),\"\",'Resumen del año actual'!B23)","v":""},0,{"$f":"COUNTIF($F23:CS23, \"P\")","v":0},{"$f":"COUNTIF($F23:CS23, \"E\")","v":0}]
[{"$f":"IF(ISBLANK('Resumen del año actual'!A24),\"\",'Resumen del año actual'!A24)","v":""},{"$f":"IF(ISBLANK('Resumen del año actual'!B24),\"\",'Resumen del año actual'!B24)","v":""},0,{"$f":"COUNTIF($F24:CS24, \"P\")","v":0},{"$f":"COUNTIF($F24:CS24, \"E\")","v":0}]
[{"$f":"IF(ISBLANK('Resumen del año actual'!A25),\"\",'Resumen del año actual'!A25)","v":""},{"$f":"IF(ISBLANK('Resumen del año actual'!B25),\"\",'Resumen del año actual'!B25)","v":""},0,{"$f":"COUNTIF($F25:CS25, \"P\")","v":0},{"$f":"COUNTIF($F25:CS25, \"E\")","v":0}]
[{"$f":"IF(ISBLANK('Resumen del año actual'!A26),\"\",'Resumen del año actual'!A26)","v":""},{"$f":"IF(ISBLANK('Resumen del año actual'!B26),\"\",'Resumen del año actual'!B26)","v":""},0,{"$f":"COUNTIF($F26:CS26, \"P\")","v":0},{"$f":"COUNTIF($F26:CS26, \"E\")","v":0}]
[{"$f":"IF(ISBLANK('Resumen del año actual'!A27),\"\",'Resumen del año actual'!A27)","v":""},{"$f":"IF(ISBLANK('Resumen del año actual'!B27),\"\",'Resumen del año actual'!B27)","v":""},0,{"$f":"COUNTIF($F27:CS27, \"P\")","v":0},{"$f":"COUNTIF($F27:CS27, \"E\")","v":0}]
[{"$f":"IF(ISBLANK('Resumen del año actual'!A28),\"\",'Resumen del año actual'!A28)","v":""},{"$f":"IF(ISBLANK('Resumen del año actual'!B28),\"\",'Resumen del año actual'!B28)","v":""},0,{"$f":"COUNTIF($F28:CS28, \"P\")","v":0},{"$f":"COUNTIF($F28:CS28, \"E\")","v":0}]
[{"$f":"IF(ISBLANK('Resumen del año actual'!A29),\"\",'Resumen del año actual'!A29)","v":""},{"$f":"IF(ISBLANK('Resumen del año actual'!B29),\"\",'Resumen del año actual'!B29)","v":""},0,{"$f":"COUNTIF($F29:CS29, \"P\")","v":0},{"$f":"COUNTIF($F29:CS29, \"E\")","v":0}]
[{"$f":"IF(ISBLANK('Resumen del año actual'!A30),\"\",'Resumen del año actual'!A30)","v":""},{"$f":"IF(ISBLANK('Resumen del año actual'!B30),\"\",'Resumen del año actual'!B30)","v":""},0,{"$f":"COUNTIF($F30:CS30, \"P\")","v":0},{"$f":"COUNTIF($F30:CS30, \"E\")","v":0}]
[{"$f":"IF(ISBLANK('Resumen del año actual'!A31),\"\",'Resumen del año actual'!A31)","v":""},{"$f":"IF(ISBLANK('Resumen del año actual'!B31),\"\",'Resumen del año actual'!B31)","v":""},0,{"$f":"COUNTIF($F31:CS31, \"P\")","v":0},{"$f":"COUNTIF($F31:CS31, \"E\")","v":0}]
[{"$f":"IF(ISBLANK('Resumen del año actual'!A32),\"\",'Resumen del año actual'!A32)","v":""},{"$f":"IF(ISBLANK('Resumen del año actual'!B32),\"\",'Resumen del año actual'!B32)","v":""},0,{"$f":"COUNTIF($F32:CS32, \"P\")","v":0},{"$f":"COUNTIF($F32:CS32, \"E\")","v":0}]
[{"$f":"IF(ISBLANK('Resumen del año actual'!A33),\"\",'Resumen del año actual'!A33)","v":""},{"$f":"IF(ISBLANK('Resumen del año actual'!B33),\"\",'Resumen del año actual'!B33)","v":""},0,{"$f":"COUNTIF($F33:CS33, \"P\")","v":0},{"$f":"COUNTIF($F33:CS33, \"E\")","v":0}]
[{"$f":"IF(ISBLANK('Resumen del año actual'!A34),\"\",'Resumen del año actual'!A34)","v":""},{"$f":"IF(ISBLANK('Resumen del año actual'!B34),\"\",'Resumen del año actual'!B34)","v":""},0,{"$f":"COUNTIF($F34:CS34, \"P\")","v":0},{"$f":"COUNTIF($F34:CS34, \"E\")","v":0}]
[{"$f":"IF(ISBLANK('Resumen del año actual'!A35),\"\",'Resumen del año actual'!A35)","v":""},{"$f":"IF(ISBLANK('Resumen del año actual'!B35),\"\",'Resumen del año actual'!B35)","v":""},0,{"$f":"COUNTIF($F35:CS35, \"P\")","v":0},{"$f":"COUNTIF($F35:CS35, \"E\")","v":0}]
[{"$f":"IF(ISBLANK('Resumen del año actual'!A36),\"\",'Resumen del año actual'!A36)","v":""},{"$f":"IF(ISBLANK('Resumen del año actual'!B36),\"\",'Resumen del año actual'!B36)","v":""},0,{"$f":"COUNTIF($F36:CS36, \"P\")","v":0},{"$f":"COUNTIF($F36:CS36, \"E\")","v":0}]